Cogmind - Beta 16 @@@ ROGUE MODE // 2026.01.03 @ 00:36:37 Player: KZ_RAD Result: Destroyed by S-10 Pest with Light Assault Rifle Performance ------------- Evolutions (1) 500 Regions Visited (2) 400 Robots Destroyed (21) 105 Value Destroyed (625) 625 Prototype IDs (0) 0 Alien Tech Used (0) 0 Bonus (0) 0 TOTAL SCORE: 1630 Bonus ------- None Cogmind --------- Core Integrity 0/400 Matter 203/300 Energy 100/100 System Corruption 1% Temperature Cool (0) Movement Core (100) Ox1 Location -9/Materials Parts ------- > --- POWER (1) -------- (None) > --- PROPULSION (2) --- (None) > --- UTILITY (4) ------ Small Storage Unit Visual Processing Unit Signal Interpreter > --- WEAPON (2) ------- (None) > --- INVENTORY (8) ---- Light Armor Plating Peak State ------------ > --- POWER ------------ Light Ion Engine > --- PROPULSION ------- Aluminum Leg Aluminum Leg > --- UTILITY ---------- Small Storage Unit Compact Battery Visual Processing Unit Signal Interpreter > --- WEAPON ----------- Improved Grenade Launcher Improved Grenade Launcher > --- INVENTORY -------- Improved Grenade Launcher Improved Grenade Launcher [Rating: 16] Favorites ----------- Power Light Ion Engine Engine Light Ion Engine Propulsion Aluminum Leg Leg Aluminum Leg Utility Small Storage Unit Storage Small Storage Unit Processor Signal Interpreter Weapon Grenade Launcher Energy Gun EM Pulse Gun Ballistic Gun Heavy Assault Rifle Launcher Grenade Launcher Build | -11 -10 -9 ------- Run | Yrd Mat Mat Slots Evolved 2 | . . 2 Power . | . . . Propulsion . | . . . Utility 2 | . . 2 Weapon . | . . . Parts Attached 19 | 5 1 13 Power 2 | 1 . 1 Engine 2 | 1 . 1 Core . | . . . Reactor . | . . . Propulsion 6 | 2 . 4 Treads . | . . . Leg 6 | 2 . 4 Wheel . | . . . Hover . | . . . Flight . | . . . Utility 4 | 1 . 3 Device . | . . . Storage 2 | 1 . 1 Processor 2 | . . 2 Hackware . | . . . Protection . | . . . Artifact . | . . . Weapon 7 | 1 1 5 Energy Gun 1 | 1 . . Energy Cannon . | . . . Ballistic Gun 1 | . . 1 Ballistic Cannon . | . . . Launcher 5 | . 1 4 Special Weapon . | . . . Impact Weapon . | . . . Slashing Weapon . | . . . Piercing Weapon . | . . . Special Melee Weapon . | . . . Unidentified Prototypes . | . . . Parts Lost 12 | . . 12 Power 2 | . . 2 Propulsion 4 | . . 4 Utility 1 | . . 1 Weapon 5 | . . 5 Highest Loss Streak 6 | . . 6 To Critical Strikes 1 | . . 1 Average Backups 1 | . 1 1 Power . | . 1 . Propulsion . | . . . Utility . | . . . Weapon . | . . . Tool/Special . | . . . Unused Backups 1 | . . 1 Power . | . . . Propulsion . | . . . Utility 1 | . . 1 Weapon . | . . . Tool/Special . | . . . Average Slot Usage (%) 77 | . 83 73 Engine 10 | . 14 7 Leg 23 | . 28 20 Storage 14 | . 14 14 Processor 9 | . . 15 Energy Gun 6 | . 14 1 Ballistic Gun 3 | . . 6 Launcher 10 | . 12 8 Peak Build Rating 16 | 5 6 16 Average Rating 7 | 3 5 9 On Entrance 3 | . 5 6 Avg Prop Armor Cover (%) . | . . . Naked Turns . | . . . Heaviest Build 21 | 10 13 21 Greatest Support 23 | 20 20 23 Greatest Overweight (x) 1 | . . 1 Average Overweight (x) . | . . . Largest Inventory Capacity 8 | 8 8 8 Average Capacity 7 | 6 8 8 Most Carried 4 | 4 2 3 Average Carried 1 | 1 1 1 Final Capacity 8 | 8 8 8 Final Carried 2 | 1 2 1 Class Distribution -------------------- 100% | Mutant Dominant Class ---------------- Mutant | -10/Materials Mutant | -9/Materials Resources | -11 -10 -9 ----------- Run | Yrd Mat Mat Matter Collected 541 | 202 164 175 Remotely . | . . . Salvage Created 552 | . 231 321 Parts 31 | . 14 17 Haulers Intercepted . | . . . Recyclers Shooed 1 | . 1 . Parts Field Recycled . | . . . Retrieved Matter . | . . . Parts Self-Destructed . | . . . Prevented . | . . . Parts Restored . | . . . Kills | -11 -10 -9 ------- Run | Yrd Mat Mat Combat Hostiles Destroyed 17 | . 6 11 Guns 4 | . 2 2 AOE 13 | . 4 9 Classes Destroyed 7 | . 6 1 Worker 1 | . 1 . Builder 1 | . 1 . Recycler 1 | . 1 . Watcher 1 | . 1 . Swarmer 3 | . 3 . Grunt 12 | . 3 9 Sentry 2 | . . 2 Best Kill Streak 7 | . 7 7 Combat Bots Only 7 | . 3 7 Max Kills in Single Turn 2 | . 2 2 Gunslinging . | . . . Exploded 2 | . 2 2 Melee . | . . . Uniques/NPCs Destroyed . | . . . Combat | -11 -10 -9 -------- Run | Yrd Mat Mat Hostile Shots Fired 158 | . 10 148 Missed 52 | . 4 48 Hits 106 | . 6 100 Projectile 106 | . 6 100 Critical Strikes 5 | . . 5 Damage Taken 1474 | . 120 1354 Core 433 | . 25 408 Absorbed by Shields . | . . . Core Remaining (%) 95 | 100 90 . Volleys Fired 29 | 2 11 16 Largest 2 | 1 2 2 Hottest 72 | 40 70 72 Shots Fired 44 | 2 22 20 Gun 20 | 2 11 7 Cannon . | . . . Launcher 24 | . 11 13 Special . | . . . Kinetic 7 | . . 7 Thermal . | . . . Explosive 24 | . 11 13 Electromagnetic 13 | 2 11 . Robot Hit Streak 7 | 1 4 7 Robot Miss Streak 4 | 1 4 2 Penetration Max . | . . . Secondary Targets . | . . . Shots Hit Robots 24 | 1 11 12 Core Hits 36 | . 15 21 Critical Kills . | . . . Critical Parts Destroyed . | . . . Critical Strikes . | . . . Melee Attacks . | . . . Impact . | . . . Slashing . | . . . Piercing . | . . . Sneak Attacks . | . . . Combat Hostiles . | . . . Follow-up Attacks . | . . . Damage Inflicted 1324 | 12 610 702 Guns 132 | 12 47 73 Cannons . | . . . Explosions 1192 | . 563 629 Melee . | . . . Ramming . | . . . Kinetic 73 | . . 73 Thermal . | . . . Explosive 1192 | . 563 629 Electromagnetic 59 | 12 47 . Impact . | . . . Slashing . | . . . Piercing . | . . . Highest Corruption 1 | . . 1 Average Corruption 1 | . . 1 Corruption Purged . | . . . Corruption Blocked . | . . . Effects 1 | . . 1 Heat Flow Errors 1 | . . 1 Overload Shots . | . . . Overflow Damage 26 | . 26 . Projectiles . | . . . Explosions 26 | . 26 . Melee . | . . . Knockbacks . | . . . Impact . | . . . Kinetic . | . . . Secondary . | . . . Self-Inflicted Damage 102 | . 48 54 Shots 8 | . 3 5 Rammed . | . . . Targets Rammed . | . . . Kicked . | . . . Crushed . | . . . Highest Temperature 240 | . 39 240 Average Temperature 48 | . 14 86 Received Heat Transfer 531 | . 30 501 Siege Activations . | . . . Martial Activations . | . . . Shielding Activations . | . . . Robots Disrupted . | . . . Combat Hostiles . | . . . Robots Corrupted . | . . . Combat Hostiles . | . . . Parts Fried . | . . . Impact Corruptions . | . . . Robots Melted . | . . . Combat Hostiles . | . . . Parts Melted . | . . . Heat Transferred . | . . . Parts Sabotaged . | . . . Parts Stolen . | . . . Parts Stripped . | . . . Power Chain Reactions 1 | . 1 . Alert | -11 -10 -9 ------- Run | Yrd Mat Mat Maximum Alert Level 1 | . 1 1 Low Security (%) 83 | 100 71 87 Level 1 16 | . 28 12 Level 2 . | . . . Level 3 . | . . . Level 4 . | . . . Level 5 . | . . . High Security . | . . . Max Security . | . . . Peak Influence 233 | . 232 233 Initial 76 | . . 76 Average 98 | . 121 98 Influence Increases 662 | . 280 382 Destroy 0b10 Robot/C 340 | . 120 220 Destroy 0b10 Robot/NC 20 | . 20 . Destroy Leader 82 | . 32 50 Disable Machine 45 | . 45 . Destroy Structure 145 | . 63 82 Lose Combat Pursuer 30 | . . 30 Influence Decreases 504 | . 98 406 Entered New Map 106 | . . 106 Time Decay 278 | . 98 180 Lost Part 120 | . . 120 Squads Dispatched 3 | . 2 1 Investigation 1 | . . 1 Extermination . | . . . Reinforcement 2 | . 2 . Assault . | . . . Garrison . | . . . Intercept . | . . . Searches Triggered . | . . . Construction Impeded . | . . . Haulers Reinforced . | . . . Active Scanning Responses . | . . . Cargo Convoy Interrupts . | . . . Stealth | -11 -10 -9 --------- Run | Yrd Mat Mat Distress Signals 1 | . 1 . Communications Jammed . | . . . Distress Signals . | . . . Times Spotted 30 | . 9 21 Peak Tracking Total 6 | . 3 6 Tactical Retreats 2 | . . 2 Traps | -11 -10 -9 ------- Run | Yrd Mat Mat Traps Triggered . | . . . Indirectly . | . . . Trap Hack Attempts . | . . . Triggered . | . . . Disarmed . | . . . Reprogrammed . | . . . Reused . | . . . Traps Extracted . | . . . Installed . | . . . Triggered . | . . . Machines | -11 -10 -9 ---------- Run | Yrd Mat Mat Machines Disabled 3 | . 3 . Max in Single Turn 1 | . 1 . Machines Repaired . | . . . Machines Dismantled . | . . . Machines Sabotaged . | . . . Overloaded Fab Kills . | . . . Hacking | -11 -10 -9 --------- Run | Yrd Mat Mat Machines Accessed 2 | . 1 1 Terminals 1 | . . 1 Fabricators . | . . . Repair Stations . | . . . Recycling Units 1 | . 1 . Scanalyzers . | . . . Garrison Access . | . . . Total Hacks 3 | . 1 2 Successful 1 | . 1 . Failed 2 | . . 2 Catastrophic 1 | . . 1 Database Lockouts . | . . . Manual . | . . . Terminals 2 | . . 2 Fabricators . | . . . Repair Stations . | . . . Recycling Units 1 | . 1 . Scanalyzers . | . . . Garrison Access . | . . . Terminal Hacks . | . . . Fabricator Hacks . | . . . Repair Station Hacks . | . . . Recycling Unit Hacks 1 | . 1 . Report Inventory 1 | . 1 . Scanalyzer . | . . . Garrison Access Hacks . | . . . Unauthorized Hacks . | . . . Terminals . | . . . Fabricators . | . . . Repair Stations . | . . . Recycling Units . | . . . Scanalyzers . | . . . Garrison Access . | . . . Data Cores Recovered . | . . . Used . | . . . Hacking Detections 1 | . . 1 Full Trace Events 1 | . . 1 Feedback Events 1 | . . 1 Corruption 1 | . . 1 Feedback Blocked . | . . . Robot Schematics Acquired . | . . . Robots Built . | . . . Authchips . | . . . Time . | . . . Total Robot Build Rating . | . . . Part Schematics Acquired . | . . . Parts Built . | . . . Authchips . | . . . Time . | . . . Total Part Build Rating . | . . . Part Studies Acquired . | . . . Parts Repaired . | . . . Time . | . . . Parts Recycled . | . . . Recycled Matter . | . . . Retrieved Matter . | . . . Retrieved Components . | . . . Parts Scanalyzed . | . . . Part Schematics Acquired . | . . . Parts Damaged . | . . . Bothacking | -11 -10 -9 ------------ Run | Yrd Mat Mat Used RIF Installer . | . . . Robots Hacked . | . . . Non-combat . | . . . Combat . | . . . Robot Hacks Applied . | . . . Relay Couplers Released . | . . . Fabnet Peak Effective % . | . . . Robots Rewired . | . . . Allies Hacked . | . . . Hacks Repelled . | . . . Allies | -11 -10 -9 -------- Run | Yrd Mat Mat Total Allies . | . . . Largest Group . | . . . Highest-Rated Group . | . . . Highest-Rated Ally . | . . . Total Orders . | . . . Ally Attacks . | . . . Total Damage . | . . . Kills . | . . . Allies Corrupted . | . . . Allies Melted . | . . . Intel | -11 -10 -9 ------- Run | Yrd Mat Mat Active Infowar (turns) 189 | . . 189 Optics 189 | . . 189 Robot Analysis Total . | . . . Derelict Logs Recovered . | . . . Drone Launches . | . . . Drone Recoveries . | . . . Exploration | -11 -10 -9 ------------- Run | Yrd Mat Mat Turns Passed 636 | 53 221 362 Spaces Moved 434 | 43 152 239 Core 31 | 19 . 12 Treads . | . . . Legs 403 | 24 152 227 Wheels . | . . . Hover . | . . . Flight . | . . . Fastest Speed 50 | 50 120 100 Average Speed 118 | 89 120 123 Slowest Speed 190 | 120 120 190 Overloaded Moves . | . . . Propulsion Burnouts . | . . . Robots Hopped . | . . . Potential Cave-ins . | . . . Cave-ins Triggered . | . . . Exploration Rate (%) 25 | 3 36 36 Regions Visited 2 Branch Regions . Pre-discovered Areas . | . . . Known Exits Taken . | . . . Unknown Exits Taken 2 | 1 1 . Scrap Searched . | . . . Spaces Dug 6 | . . 6 Terrain Destroyed 154 | . 60 94 Melee . | . . . Projectile . | . . . AOE 154 | . 60 94 Terrain Rammed . | . . . Walls Destroyed . | . . . Machines Disabled . | . . . Actions | -11 -10 -9 --------- Run | Yrd Mat Mat Total 509 | 55 168 286 Wait 3 | . 3 . Move 432 | 42 151 239 Hop . | . . . Pick Up 20 | 6 2 12 Fast Attach . | . . . Attach 17 | 5 1 11 Detach . | . . . Swap 4 | . . 4 Drop 4 | . . 4 Fire 29 | 2 11 16 Melee . | . . . Ram . | . . . Kick . | . . . Crush . | . . . Escape Stasis . | . . . Rewire . | . . . Trap . | . . . Miscellaneous . | . . . Route ------- -11/Scrapyard -10/Materials -9/Materials History --------- Turn | Location | Event 6 | -11/Scrapyard | Discovered new exit (range 15) 54 | -11/Scrapyard | Entered Materials 152 | -10/Materials | Discovered new exit (range 4) 275 | -10/Materials | Entered another Materials area 275 | -9/Materials | Evolved 2 slots: Utility x2 322 | -9/Materials | Build established: Mutant 548 | -9/Materials | Core integrity fell below 50% 572 | -9/Materials | Destroyed 7 combat bots 609 | -9/Materials | Lost 6 parts (1p2n3w) 631 | -9/Materials | Core integrity fell below 20% 637 | -9/Materials | Destroyed by S-10 Pest with Light Assault Rifle Last Messages --------------- Critical hit (Burn: +37). Acquired Aluminum Leg. Acquired 33 matter. Imp. Grenade Launcher destroyed. K-01 Serf collects debris. The unstable cave ceiling collapses. Imp. Grenade Launcher destroyed. K-01 Serf collects debris. U-05 Engineer lays Concrete. Dropped Aluminum Leg. Y-45 Defender destroyed. Acquired 35 matter. U-05 Engineer lays Concrete. Acquired Lgt. Armor Plating. U-05 Engineer builds a Wall. Aluminum Leg destroyed. Critical hit (Destroy). Imp. Grenade Launcher destroyed. S-10 Pest destroyed. Com. Battery destroyed. Map ----- +----------------------------------------------------+ | | | | | | | | | | | | | | | | | | | | | | | | | | | | | | | | | ##?????????#########?????????????????????????????? | | #????????? ! #????????????????????????????? | | #????????? ????????????????????????????? | | #???????? #????????????????????????????? | | #???????? """ """ #????????????????????????????? | | #?????????"""""""" #????????????????????????????? | | #???????????""""" #????????????????????????????? | | ########?????? ?????????????????????????????? | | ### ####+####Y############### #???????????? | | *Ys @ #???????????? | | Y s [ #???????????? | | ## ## ################### #???????????? | | = ! ## #?## #######??????????? #???????????? | | =[ ## #! #????????????????????????? | | ] # # #????????????????????????? | | ! ## + #????????????????????????? | | #""" ## # #????????????????????????? | | #""" =## # #????????????????????????? | | """ ## #?##########????????????????????????? | | ## ???????????????????????????????????? | | ## ???????????????????????????????????? | | ########### #???????????????????????????????????? | | #????# #???????????????????????????????????? | | #?????# #???????????????????????????????????? | | #?????+ #???????????????????????????????????? | | """ #?????# #???????????????????????????????????? | | """ #?????# ????????????????????????????????????? | | ""????????# ????????????????????????????????????? | | "?????????+ ????????????????????????????????????? | | "?????????# ????????????????????????????????????? | | #?????????? ????????????????????????????????????? | | ???????????+#????????????????????????????????????? | | ?????????????????????????????????????????????????? | | ###??????????????????????????????????????????????? | +----------------------------------------------------+ Best States ------------- Heat Dissipation 28 Energy Generation 10 Energy Capacity 325 Matter Stores 296 Matter Capacity 300 Sight Range 18 Terrain Scan Density 10 Evasion (%) 55 Item Schematics ----------------- None Robot Schematics ------------------ None Fabricated ------------ Nothing Repaired ---------- Nothing Studied --------- None Alien Tech Used ----------------- None Achievements -------------- None Challenges ------------ None Game ------ Seed ArcGodMagmablaster Manual? 0 Play Time 00:09:56 Cumulative 5.6 hours Start 2026.01.03 @ 00:27:59 End 2026.01.03 @ 00:36:37 Sessions 1 Manual Loads 0 Difficulty Rogue Special Mode None Game No. 15 Rogue 15 Adventurer 0 Explorer 0 Win Type - Total 0 Types 0/0/0/0/0/0/0/0/0/0 Lore% 5 Gallery% 9 Achievement% 9 Wizard Run 0 Options --------- Layout 1 ASCII 0 Keyboard 0 Movement Mouse Keybinds 0 Fullscreen 1 Font 32/SmallcapsGlow Map View 50x35 Zoom Use 0% Tactical HUD 0 Map Filters NONE Filters NONE Steam 1 RUN: 3dfb81ff-22a4-48bb-9d17-c5947ae3712b